[Event "Djerba Festival Open-B 2025"]
[Site "Djerba"]
[Date "2025.02.17"]
[Round "2.27"]
[White "Doucet, Paul-Loup"]
[Black "Smida, Tahar"]
[Result "0-1"]
[Annotator "NA"]
[ECO "D31"]
[WhiteElo "1503"]
[BlackElo "1769"]
[PlyCount "162"]
[EventDate "2025.02.15"]
[EventType "swiss"]
[EventCountry "TUN"]
[SourceTitle "playchess.com"]
[Source "ChessBase"]
[SourceQuality "1"]
[TimeControl "5400+30"]

1. e4 {[%emt 0:00:04]} c6 {[%emt 0:01:14]} 2. c4 {[%emt 0:01:26]} e6 {[%emt 0:02:45]} 3. d4 {[%emt 0:00:30]} d5 {[%emt 0:02:22]} 4. Nc3 {[%emt 0:06:08]} Bb4 {[%emt 0:09:05]} 5. exd5 {[%emt 0:00:14]} exd5 {[%emt 0:01:40]} 6. Bd2 {[%emt 0:01:58]} Nf6 {[%emt 0:07:44]} 7. a3 {[%emt 0:04:04]} Ba5 {[%emt 0:02:46]} 8. b4 {[%emt 0:02:24]} Bb6 {[%emt 0:01:40]} 9. c5 {[%emt 0:00:08]} Bc7 {[%emt 0:00:12]} 10. Bd3 {[%emt 0:00:31]} Bg4 {[%emt 0:02:49]} 11. f3 {[%emt 0:01:11]} Bh5 {[%emt 0:00:30]} 12. Qe2+ {[%emt 0:01:06]} Qe7 {[%emt 0:04:04]} 13. b5 {[%emt 0:02:16]} Nbd7 {[%emt 0:03:43]} 14. bxc6 {[%emt 0:02:36]} bxc6 {[%emt 0:00:13]} 15. Rb1 {[%emt 0:01:14]} Rb8 {[%emt 0:03:55]} 16. Rxb8+ {[%emt 0:01:54]} Bxb8 {[%emt 0:02:47]} 17. Ba6 {[%emt 0:00:11]} Bc7 {[%emt 0:00:15]} 18. Na2 {[%emt 0:00:08]} Ne4 {[%emt 0:12:33]} 19. g4 {[%emt 0:01:38]} Nxd2 {[%emt 0:00:11]} 20. Qxe7+ {[%emt 0:00:06]} Kxe7 {[%emt 0:00:11]} 21. Kxd2 {[%emt 0:00:14]} Bg6 {[%emt 0:01:08]} 22. Ne2 {[%emt 0:00:54]} h5 {[%emt 0:02:39]} 23. g5 {[%emt 0:01:08]} Nb8 {[%emt 0:03:20]} 24. Bb7 {[%emt 0:00:28]} Kd7 {[%emt 0:00:41]} 25. Nec1 {[%emt 0:01:20]} Ba5+ {[%emt 0:00:30]} 26. Ke2 {[%emt 0:01:43]} Kc7 {[%emt 0:00:33]} 27. Nb3 {[%emt 0:00:27]} Re8+ {[%emt 0:01:29]} 28. Kd1 {[%emt 0:01:58]} Kxb7 {[%emt 0:01:18]} 29. Nxa5+ {[%emt 0:00:08]} Ka6 {[%emt 0:00:12]} 30. Nb3 {[%emt 0:00:09]} Re3 {[%emt 0:01:48]} 31. Nac1 {[%emt 0:02:47]} Rxf3 {[%emt 0:00:48]} 32. Re1 {[%emt 0:01:07]} Be4 {[%emt 0:31:25]} 33. Nd2 {[%emt 0:00:35]} Rf4 {[%emt 0:00:00]} 34. Re3 {[%emt 0:01:59]} f5 {[%emt 0:00:00]} 35. h3 {[%emt 0:03:30]} Nd7 {[%emt 0:00:00]} 36. Ke1 {[%emt 0:00:19]} Nf8 {[%emt 0:00:00]} 37. Ne2 {[%emt 0:01:41]} Rh4 {[%emt 0:00:00]} 38. Kf2 {[%emt 0:00:23]} f4 {[%emt 0:00:00]} 39. Rb3 {[%emt 0:01:23]} Ne6 {[%emt 0:00:00]} 40. Rb4 {[%emt 0:04:00]} Nxg5 {[%emt 0:00:00]} 41. Nxe4 {[%emt 0:02:50]} Nxe4+ {[%emt 0:00:00]} 42. Kg2 {[%emt 0:00:52]} Nd2 {[%emt 0:00:00]} 43. Ng1 {[%emt 0:01:01]} g5 {[%emt 0:00:00]} 44. Rb2 {[%emt 0:00:46]} f3+ {[%emt 0:01:16]} 45. Kf2 {[%emt 0:02:10]} Rxd4 {[%emt 0:02:31]} 46. Ke1 {[%emt 0:49:51]} Nc4 {[%emt 0:00:40]} 47. Nxf3 {[%emt 0:00:00]} Re4+ {[%emt 0:00:49]} 48. Re2 {[%emt 0:00:00]} Rxe2+ {[%emt 0:00:09]} 49. Kxe2 {[%emt 0:00:00]} g4 {[%emt 0:00:16]} 50. hxg4 {[%emt 0:00:00]} hxg4 {[%emt 0:00:03]} 51. Nd4 {[%emt 0:00:00]} Kb7 {[%emt 0:01:03]} 52. a4 {[%emt 0:00:00]} Nb2 {[%emt 0:00:17]} 53. a5 {[%emt 0:00:00]} a6 {[%emt 0:00:20]} 54. Kf2 {[%emt 0:00:00]} Nd3+ {[%emt 0:00:08]} 55. Kg3 {[%emt 0:00:00]} Nxc5 {[%emt 0:00:05]} 56. Kxg4 {[%emt 0:00:00]} Nd3 {[%emt 0:00:27]} 57. Kf3 {[%emt 0:00:00]} c5 {[%emt 0:00:28]} 58. Nc2 {[%emt 0:00:00]} Kc6 {[%emt 0:00:26]} 59. Ke3 {[%emt 0:00:00]} Ne5 {[%emt 0:00:13]} 60. Kf4 {[%emt 0:00:00]} Nc4 {[%emt 0:00:20]} 61. Kf3 {[%emt 0:00:00]} Nxa5 {[%emt 0:00:11]} 62. Ke3 {[%emt 0:00:00]} Nb3 {[%emt 0:01:11]} 63. Kd3 {[%emt 0:00:00]} a5 {[%emt 0:01:43]} 64. Kc3 {[%emt 0:00:00]} a4 {[%emt 0:00:29]} 65. Na3 {[%emt 0:00:00]} d4+ {[%emt 0:00:34]} 66. Kc4 {[%emt 0:00:00]} Na5+ {[%emt 0:00:21]} 67. Kd3 {[%emt 0:00:00]} Kd5 {[%emt 0:00:08]} 68. Nb5 {[%emt 0:00:00]} c4+ {[%emt 0:00:12]} 69. Kc2 {[%emt 0:00:00]} Kc5 {[%emt 0:00:15]} 70. Nc7 {[%emt 0:00:00]} Nc6 {[%emt 0:00:59]} 71. Kb2 {[%emt 0:00:00]} c3+ {[%emt 0:00:33]} 72. Kc2 {[%emt 0:00:00]} Nb4+ {[%emt 0:00:12]} 73. Kc1 {[%emt 0:00:00]} d3 {[%emt 0:00:25]} 74. Ne6+ {[%emt 0:00:00]} Kc4 {[%emt 0:00:16]} 75. Nf4 {[%emt 0:00:00]} Na2+ {[%emt 0:00:23]} 76. Kb1 {[%emt 0:00:00]} c2+ {[%emt 0:00:56]} 77. Kb2 {[%emt 0:00:00]} c1=Q+ {[%emt 0:00:17]} 78. Kxa2 {[%emt 0:00:00]} Qxf4 {[%emt 0:00:27]} 79. Ka3 {[%emt 0:00:00]} Qb8 {[%emt 0:00:12]} 80. Ka2 {[%emt 0:00:00]} Kc3 {[%emt 0:00:09]} 81. Ka3 {[%emt 0:00:00]} Qb3# {[%emt 0:00:12]} 0-1

[Event "Djerba Festival Open-B 2025"]
[Site "Djerba"]
[Date "2025.02.17"]
[Round "2.28"]
[White "Cherad, Mohammed"]
[Black "Hafsa, Yessine"]
[Result "1-0"]
[Annotator "NA"]
[ECO "C54"]
[WhiteElo "1768"]
[BlackElo "1503"]
[PlyCount "99"]
[EventDate "2025.02.15"]
[EventType "swiss"]
[EventCountry "TUN"]
[SourceTitle "playchess.com"]
[Source "ChessBase"]
[SourceQuality "1"]
[TimeControl "5400+30"]

1. e4 {[%emt 0:00:03]} e5 {[%emt 0:00:09]} 2. Nf3 {[%emt 0:00:11]} Nc6 {[%emt 0:00:06]} 3. Bc4 {[%emt 0:00:19]} Bc5 {[%emt 0:00:17]} 4. c3 {[%emt 0:00:22]} Nf6 {[%emt 0:00:12]} 5. d3 {[%emt 0:00:16]} d6 {[%emt 0:00:31]} 6. a4 {[%emt 0:00:35]} a6 {[%emt 0:00:37]} 7. Bb3 {[%emt 0:02:06]} h6 {[%emt 0:01:06]} 8. O-O {[%emt 0:00:16]} Bg4 {[%emt 0:00:18]} 9. h3 {[%emt 0:00:40]} Bh5 {[%emt 0:00:07]} 10. Re1 {[%emt 0:00:59]} Ne7 {[%emt 0:01:45]} 11. Nbd2 {[%emt 0:01:05]} Ng6 {[%emt 0:01:21]} 12. Nf1 {[%emt 0:02:15]} Nh4 {[%emt 0:01:39]} 13. Ng3 {[%emt 0:05:30]} Bxf3 {[%emt 0:01:36]} 14. gxf3 {[%emt 0:01:07]} Qd7 {[%emt 0:00:17]} 15. Kh2 {[%emt 0:04:07]} Bxf2 {[%emt 0:00:51]} 16. Rf1 {[%emt 0:00:27]} Bxg3+ {[%emt 0:05:07]} 17. Kxg3 {[%emt 0:00:30]} Nh5+ {[%emt 0:00:06]} 18. Kh2 {[%emt 0:02:14]} Ng6 {[%emt 0:00:16]} 19. Rg1 {[%emt 0:05:25]} Ngf4 {[%emt 0:00:31]} 20. Qf1 {[%emt 0:03:19]} O-O {[%emt 0:02:23]} 21. Rg4 {[%emt 0:09:54]} Kh7 {[%emt 0:04:15]} 22. Bc2 {[%emt 0:04:30]} g6 {[%emt 0:03:32]} 23. d4 {[%emt 0:03:08]} Kh8 {[%emt 0:01:23]} 24. Be3 {[%emt 0:01:53]} f5 {[%emt 0:01:47]} 25. exf5 {[%emt 0:06:36]} gxf5 {[%emt 0:00:08]} 26. Rg1 {[%emt 0:06:23]} Rg8 {[%emt 0:01:14]} 27. Qf2 {[%emt 0:03:51]} Rxg1 {[%emt 0:08:20]} 28. Rxg1 {[%emt 0:00:49]} Nxh3 {[%emt 0:00:05]} 29. Qh4 {[%emt 0:03:15]} Nxg1 {[%emt 0:11:09]} 30. Qxh5 {[%emt 0:00:30]} Nxf3+ {[%emt 0:04:45]} 31. Qxf3 {[%emt 0:00:17]} f4 {[%emt 0:00:12]} 32. Bf2 {[%emt 0:04:02]} Rg8 {[%emt 0:01:00]} 33. Qh5 {[%emt 0:05:12]} Qg7 {[%emt 0:00:43]} 34. Be4 {[%emt 0:00:13]} c6 {[%emt 0:00:27]} 35. dxe5 {[%emt 0:03:49]} dxe5 {[%emt 0:00:05]} 36. Qf5 {[%emt 0:01:08]} Rf8 {[%emt 0:02:19]} 37. Qh5 {[%emt 0:03:44]} Qg5 {[%emt 0:00:22]} 38. Qe2 {[%emt 0:01:10]} h5 {[%emt 0:05:48]} 39. Bf3 {[%emt 0:01:08]} Rf6 {[%emt 0:00:17]} 40. Qd2 {[%emt 0:02:05]} Rf7 {[%emt 0:00:51]} 41. Qd6 {[%emt 0:01:04]} h4 {[%emt 0:00:57]} 42. Qe6 {[%emt 0:01:49]} Kg7 {[%emt 0:00:51]} 43. Qh3 {[%emt 0:01:43]} Rf8 {[%emt 0:03:54]} 44. Bxh4 {[%emt 0:01:02]} Qg6 {[%emt 0:00:11]} 45. Qd7+ {[%emt 0:01:58]} Rf7 {[%emt 0:00:18]} 46. Qe8 {[%emt 0:01:22]} e4 {[%emt 0:03:39]} 47. Qe5+ {[%emt 0:02:23]} Kh6 {[%emt 0:00:20]} 48. Bxe4 {[%emt 0:00:18]} Qg7 {[%emt 0:01:11]} 49. Bg5+ {[%emt 0:01:33]} Qxg5 {[%emt 0:00:19]} 50. Qh8+ {[%emt 0:00:02]} 1-0

[Event "Djerba Festival Open-B 2025"]
[Site "Djerba"]
[Date "2025.02.18"]
[Round "3.1"]
[White "Lebret, Jean-Michel"]
[Black "Tkitek Mohamed Mejed"]
[Result "1-0"]
[Annotator "ChessBase"]
[ECO "C97"]
[WhiteElo "1995"]
[BlackElo "1875"]
[PlyCount "136"]
[EventDate "2025.02.15"]
[EventType "swiss"]
[EventCountry "TUN"]
[SourceTitle "playchess.com"]
[Source "ChessBase"]
[SourceQuality "1"]
[TimeControl "5400+30"]

1. e4 {[%emt 0:00:04]} e5 {[%emt 0:00:11]} 2. Nf3 {[%emt 0:00:08]} Nc6 {[%emt 0:00:12]} 3. Bb5 {[%emt 0:00:13]} a6 {[%emt 0:00:19]} 4. Ba4 {[%emt 0:00:13]} Be7 {[%emt 0:01:10]} 5. O-O {[%emt 0:02:26]} b5 {[%emt 0:00:22]} 6. Bb3 {[%emt 0:00:18]} Nf6 {[%emt 0:00:16]} 7. Re1 {[%emt 0:00:10]} d6 {[%emt 0:00:39]} 8. c3 {[%emt 0:00:42]} O-O {[%emt 0:00:09]} 9. h3 {[%emt 0:00:17]} Na5 {[%emt 0:00:23]} 10. Bc2 {[%emt 0:00:08]} c5 {[%emt 0:00:22]} 11. d4 {[%emt 0:00:19]} Qc7 {[%emt 0:03:17]} 12. Nbd2 {[%emt 0:01:31]} Re8 {[%emt 0:01:45]} 13. Nf1 {[%emt 0:02:15]} h6 {[%emt 0:02:29]} 14. Ng3 {[%emt 0:07:01]} Bf8 {[%emt 0:00:23]} 15. b3 {[%emt 0:13:07]} Nc6 {[%emt 0:01:11]} 16. d5 {[%emt 0:01:01]} Ne7 {[%emt 0:05:22]} 17. a4 {[%emt 0:02:24]} bxa4 {[%emt 0:00:20]} 18. Rxa4 {[%emt 0:00:26]} Ng6 {[%emt 0:02:49]} 19. Nf5 {[%emt 0:08:55]} Bd7 {[%emt 0:05:52]} 20. Ra2 {[%emt 0:00:41]} Nf4 {[%emt 0:02:17]} 21. g3 {[%emt 0:02:29]} Bxf5 {[%emt 0:03:03]} 22. gxf4 {[%emt 0:05:09]} Bxh3 {[%emt 0:01:05]} 23. Qd3 {[%emt 0:08:27]} exf4 {[%emt 0:04:11]} 24. Bxf4 {[%emt 0:02:26]} Bg4 {[%emt 0:00:12]} 25. e5 {[%emt 0:01:45]} Bxf3 {[%emt 0:00:54]} 26. Qxf3 {[%emt 0:00:44]} dxe5 {[%emt 0:04:41]} 27. Bxh6 {[%emt 0:03:50]} gxh6 {[%emt 0:04:20]} 28. Qxf6 {[%emt 0:00:08]} Qd6 {[%emt 0:00:10]} 29. Qxd6 {[%emt 0:02:38]} Bxd6 {[%emt 0:00:03]} 30. Rea1 {[%emt 0:00:12]} Kg7 {[%emt 0:09:42]} 31. Rxa6 {[%emt 0:00:14]} Rad8 {[%emt 0:02:10]} 32. f3 {[%emt 0:09:07]} Rf8 {[%emt 0:01:34]} 33. Rc6 {[%emt 0:01:41]} Kf6 {[%emt 0:02:40]} 34. Raa6 {[%emt 0:02:04]} Ke7 {[%emt 0:00:10]} 35. Bf5 {[%emt 0:00:47]} Rg8+ {[%emt 0:00:25]} 36. Kf2 {[%emt 0:01:08]} Rg5 {[%emt 0:00:02]} 37. Bh3 {[%emt 0:01:22]} h5 {[%emt 0:05:40]} 38. Ra7+ {[%emt 0:00:56]} Kf6 {[%emt 0:00:05]} 39. c4 {[%emt 0:00:47]} e4 {[%emt 0:16:05]} 40. f4 {[%emt 0:05:37]} Rgg8 {[%emt 0:01:32]} 41. Bd7 {[%emt 0:00:52]} Ke7 {[%emt 0:04:09]} 42. Be6+ {[%emt 0:00:24]} Kf8 {[%emt 0:00:19]} 43. Rxf7+ {[%emt 0:00:40]} Ke8 {[%emt 0:00:02]} 44. Rh7 {[%emt 0:02:00]} Rf8 {[%emt 0:00:11]} 45. f5 {[%emt 0:00:20]} Be5 {[%emt 0:00:25]} 46. Ke3 {[%emt 0:01:12]} Rh8 {[%emt 0:01:36]} 47. Bf7+ {[%emt 0:06:00]} Kd7 {[%emt 0:00:54]} 48. Rch6 {[%emt 0:01:17]} Rxh7 {[%emt 0:01:17]} 49. Rxh7 {[%emt 0:00:03]} Rh8 {[%emt 0:00:02]} 50. Rxh5 {[%emt 0:01:50]} Rxh5 {[%emt 0:01:12]} 51. Bxh5 {[%emt 0:00:03]} Ke7 {[%emt 0:00:16]} 52. Kxe4 {[%emt 0:00:09]} Bd6 {[%emt 0:00:43]} 53. Bd1 {[%emt 0:02:22]} Kf6 {[%emt 0:00:20]} 54. Bc2 {[%emt 0:00:13]} Ke7 {[%emt 0:00:29]} 55. b4 {[%emt 0:00:44]} cxb4 {[%emt 0:01:13]} 56. Kd4 {[%emt 0:00:02]} Bg3 {[%emt 0:02:24]} 57. c5 {[%emt 0:00:24]} Kf6 {[%emt 0:04:33]} 58. Kc4 {[%emt 0:00:16]} Be1 {[%emt 0:00:11]} 59. d6 {[%emt 0:00:54]} Ke5 {[%emt 0:02:14]} 60. Kb5 {[%emt 0:01:46]} Bd2 {[%emt 0:04:17]} 61. Kc6 {[%emt 0:01:03]} Bg5 {[%emt 0:01:17]} 62. Kc7 {[%emt 0:01:19]} Kd5 {[%emt 0:00:21]} 63. d7 {[%emt 0:00:09]} Kxc5 {[%emt 0:00:55]} 64. d8=Q {[%emt 0:00:13]} Bxd8+ {[%emt 0:00:37]} 65. Kxd8 {[%emt 0:00:08]} Kd6 {[%emt 0:00:12]} 66. Ke8 {[%emt 0:00:41]} Ke5 {[%emt 0:00:15]} 67. Kf7 {[%emt 0:00:14]} b3 {[%emt 0:00:08]} 68. Bb1 {[%emt 0:00:06]} Kd5 {[%emt 0:05:26]} 1-0

[Event "Djerba Festival Open-B 2025"]
[Site "Djerba"]
[Date "2025.02.18"]
[Round "3.2"]
[White "Bensadi, Lotfi"]
[Black "Kole, Arda"]
[Result "0-1"]
[Annotator "ChessBase"]
[ECO "C24"]
[WhiteElo "1971"]
[BlackElo "1848"]
[PlyCount "81"]
[EventDate "2025.02.15"]
[EventType "swiss"]
[EventCountry "TUN"]
[SourceTitle "playchess.com"]
[Source "ChessBase"]
[SourceQuality "1"]
[TimeControl "5400+30"]

1. e4 {[%emt 0:07:04]} e5 {[%emt 0:00:09]} 2. Bc4 {[%emt 0:02:27]} Nf6 {[%emt 0:00:46]} 3. d4 {[%emt 0:03:06]} exd4 {[%emt 0:10:29]} 4. Nf3 {[%emt 0:00:10]} Bb4+ {[%emt 0:02:17]} 5. c3 {[%emt 0:28:12]} dxc3 {[%emt 0:00:33]} 6. bxc3 {[%emt 0:01:36]} Bc5 {[%emt 0:05:37]} 7. e5 {[%emt 0:00:58]} d5 {[%emt 0:28:49]} 8. exf6 {[%emt 0:05:28]} dxc4 {[%emt 0:01:10]} 9. Qa4+ {[%emt 0:21:22]} Kf8 {[%emt 0:00:59]} 10. Qxc4 {[%emt 0:08:28]} Qe8+ {[%emt 0:04:19]} 11. Kf1 {[%emt 0:01:58]} Qc6 {[%emt 0:17:04]} 12. fxg7+ {[%emt 0:11:55]} Kxg7 {[%emt 0:00:09]} 13. Qf4 {[%emt 0:02:35]} Re8 {[%emt 0:07:03]} 14. c4 {[%emt 0:00:43]} f6 {[%emt 0:02:54]} 15. Bb2 {[%emt 0:01:11]} b5 {[%emt 0:03:32]} 16. Nc3 {[%emt 0:00:36]} Bd6 {[%emt 0:01:32]} 17. Qh4 {[%emt 0:00:30]} Qxc4+ {[%emt 0:01:34]} 18. Qxc4 {[%emt 0:00:06]} bxc4 {[%emt 0:00:02]} 19. Nd5 {[%emt 0:00:18]} Nd7 {[%emt 0:00:38]} 20. Rd1 {[%emt 0:01:03]} Ne5 {[%emt 0:00:51]} 21. Nd4 {[%emt 0:00:31]} Rb8 {[%emt 0:02:54]} 22. Bc3 {[%emt 0:00:09]} c5 {[%emt 0:01:17]} 23. Nc2 {[%emt 0:01:34]} Bf5 {[%emt 0:00:48]} 24. Nce3 {[%emt 0:00:00]} Bd3+ {[%emt 0:00:15]} 25. Kg1 {[%emt 0:00:08]} Kf7 {[%emt 0:01:05]} 26. f4 {[%emt 0:00:49]} Nd7 {[%emt 0:00:11]} 27. Kf2 {[%emt 0:00:19]} Re6 {[%emt 0:03:01]} 28. Rhe1 {[%emt 0:00:37]} Rbe8 {[%emt 0:00:39]} 29. g3 {[%emt 0:00:14]} h5 {[%emt 0:00:59]} 30. h3 {[%emt 0:00:28]} Re4 {[%emt 0:00:37]} 31. h4 {[%emt 0:00:54]} R4e6 {[%emt 0:01:07]} 32. Rd2 {[%emt 0:00:27]} Rb8 {[%emt 0:01:03]} 33. Rb2 {[%emt 0:00:31]} Rxb2+ {[%emt 0:00:28]} 34. Bxb2 {[%emt 0:00:01]} f5 {[%emt 0:01:14]} 35. Rc1 {[%emt 0:00:34]} Nb6 {[%emt 0:00:31]} 36. Nc3 {[%emt 0:00:52]} Be7 {[%emt 0:01:04]} 37. Nb5 {[%emt 0:00:27]} a5 {[%emt 0:00:49]} 38. Bc3 {[%emt 0:00:29]} Bf6 {[%emt 0:00:29]} 39. Bxa5 {[%emt 0:00:30]} Bd4 {[%emt 0:00:20]} 40. Re1 {[%emt 0:00:37]} Na4 {[%emt 0:00:34]} 41. Nc7 {[%emt 0:01:03]} 0-1

[Event "Djerba Festival Open-B 2025"]
[Site "Djerba"]
[Date "2025.02.18"]
[Round "3.3"]
[White "Zenaidi, Sadok"]
[Black "Belhaj, Nadhem"]
[Result "1-0"]
[Annotator "ChessBase"]
[ECO "C54"]
[WhiteElo "1872"]
[BlackElo "1960"]
[PlyCount "91"]
[EventDate "2025.02.15"]
[EventType "swiss"]
[EventCountry "TUN"]
[SourceTitle "playchess.com"]
[Source "ChessBase"]
[SourceQuality "1"]
[TimeControl "5400+30"]

1. e4 {[%emt 0:08:53]} e5 {[%emt 0:00:08]} 2. Nf3 {[%emt 0:00:07]} Nc6 {[%emt 0:00:05]} 3. Bc4 {[%emt 0:00:05]} Bc5 {[%emt 0:00:18]} 4. c3 {[%emt 0:00:14]} Nf6 {[%emt 0:00:11]} 5. d4 {[%emt 0:00:05]} exd4 {[%emt 0:00:13]} 6. e5 {[%emt 0:00:05]} d5 {[%emt 0:00:24]} 7. Bb5 {[%emt 0:00:05]} Ne4 {[%emt 0:00:17]} 8. cxd4 {[%emt 0:00:05]} Bb6 {[%emt 0:00:08]} 9. Nc3 {[%emt 0:00:26]} O-O {[%emt 0:00:48]} 10. Be3 {[%emt 0:00:19]} Bg4 {[%emt 0:01:48]} 11. h3 {[%emt 0:00:07]} Bh5 {[%emt 0:00:14]} 12. Qc2 {[%emt 0:00:17]} Nxc3 {[%emt 0:13:17]} 13. bxc3 {[%emt 0:00:17]} Bg6 {[%emt 0:03:52]} 14. Qa4 {[%emt 0:02:47]} Ne7 {[%emt 0:05:10]} 15. Nh4 {[%emt 0:06:53]} Nf5 {[%emt 0:06:03]} 16. Nxf5 {[%emt 0:04:30]} Bxf5 {[%emt 0:00:08]} 17. O-O {[%emt 0:01:58]} c6 {[%emt 0:04:33]} 18. Be2 {[%emt 0:00:15]} f6 {[%emt 0:04:31]} 19. g4 {[%emt 0:06:44]} Bd7 {[%emt 0:04:40]} 20. f4 {[%emt 0:01:22]} fxe5 {[%emt 0:01:33]} 21. fxe5 {[%emt 0:00:05]} Qh4 {[%emt 0:03:21]} 22. Kg2 {[%emt 0:00:13]} Rae8 {[%emt 0:04:49]} 23. Qc2 {[%emt 0:04:21]} Bd8 {[%emt 0:03:43]} 24. Bf4 {[%emt 0:05:43]} h5 {[%emt 0:06:35]} 25. Bg3 {[%emt 0:05:32]} Qg5 {[%emt 0:02:35]} 26. h4 {[%emt 0:08:57]} Qh6 {[%emt 0:05:55]} 27. gxh5 {[%emt 0:07:22]} Qe6 {[%emt 0:02:45]} 28. Rh1 {[%emt 0:05:34]} Qf5 {[%emt 0:05:54]} 29. Qxf5 {[%emt 0:02:17]} Bxf5 {[%emt 0:00:08]} 30. Rhf1 {[%emt 0:00:12]} Be4+ {[%emt 0:00:59]} 31. Kh3 {[%emt 0:00:29]} Be7 {[%emt 0:01:14]} 32. Bg4 {[%emt 0:01:50]} Rd8 {[%emt 0:03:27]} 33. Bf4 {[%emt 0:00:47]} Bd3 {[%emt 0:02:06]} 34. Rf2 {[%emt 0:00:17]} Bf5 {[%emt 0:02:20]} 35. Raf1 {[%emt 0:00:15]} Bxg4+ {[%emt 0:00:58]} 36. Kxg4 {[%emt 0:00:06]} Ba3 {[%emt 0:01:34]} 37. h6 {[%emt 0:02:47]} g6 {[%emt 0:01:40]} 38. Bg5 {[%emt 0:00:39]} Rxf2 {[%emt 0:04:10]} 39. Rxf2 {[%emt 0:00:06]} Re8 {[%emt 0:02:25]} 40. Rf6 {[%emt 0:00:16]} Bf8 {[%emt 0:02:56]} 41. Rxg6+ {[%emt 0:00:29]} Kh7 {[%emt 0:00:55]} 42. Rf6 {[%emt 0:00:13]} Kg8 {[%emt 0:00:53]} 43. Kh5 {[%emt 0:00:24]} a5 {[%emt 0:01:20]} 44. Kg6 {[%emt 0:00:13]} a4 {[%emt 0:00:25]} 45. h7+ {[%emt 0:00:17]} Kh8 {[%emt 0:00:08]} 46. Rxf8+ {[%emt 0:00:06]} 1-0

[Event "Djerba Festival Open-B 2025"]
[Site "Djerba"]
[Date "2025.02.18"]
[Round "3.4"]
[White "Cornileau, Raphael"]
[Black "Guirat, Saber"]
[Result "1/2-1/2"]
[Annotator "ChessBase"]
[ECO "B82"]
[WhiteElo "1864"]
[BlackElo "1956"]
[PlyCount "142"]
[EventDate "2025.02.15"]
[EventType "swiss"]
[EventCountry "TUN"]
[SourceTitle "playchess.com"]
[Source "ChessBase"]
[SourceQuality "1"]
[TimeControl "5400+30"]

1. e4 {[%emt 0:00:05]} c5 {[%emt 0:00:02]} 2. Nf3 {[%emt 0:00:05]} e6 {[%emt 0:00:03]} 3. d4 {[%emt 0:00:14]} cxd4 {[%emt 0:00:03]} 4. Nxd4 {[%emt 0:00:06]} a6 {[%emt 0:00:06]} 5. Nc3 {[%emt 0:00:45]} Qc7 {[%emt 0:00:04]} 6. Bd3 {[%emt 0:01:13]} Nf6 {[%emt 0:00:13]} 7. O-O {[%emt 0:00:11]} Nc6 {[%emt 0:00:24]} 8. Nb3 {[%emt 1:31:51]} Be7 {[%emt 0:02:00]} 9. Be3 {[%emt 0:00:00]} O-O {[%emt 0:03:30]} 10. f4 {[%emt 0:00:00]} d6 {[%emt 0:00:05]} 11. Be2 {[%emt 0:00:00]} b5 {[%emt 0:00:34]} 12. Bf3 {[%emt 0:00:00]} Bb7 {[%emt 0:00:54]} 13. Qe2 {[%emt 0:00:00]} Rac8 {[%emt 0:01:52]} 14. Rfd1 {[%emt 0:00:00]} Nb8 {[%emt 0:04:55]} 15. a3 {[%emt 0:00:00]} Nbd7 {[%emt 0:00:03]} 16. Rd2 {[%emt 0:00:00]} Nb6 {[%emt 0:05:26]} 17. Na5 {[%emt 0:00:00]} Ba8 {[%emt 0:01:41]} 18. Qf2 {[%emt 0:00:00]} Nfd7 {[%emt 0:07:12]} 19. Bd4 {[%emt 0:00:00]} e5 {[%emt 0:06:27]} 20. Be3 {[%emt 0:00:00]} Na4 {[%emt 0:05:37]} 21. Nxa4 {[%emt 0:00:00]} bxa4 {[%emt 0:01:09]} 22. b4 {[%emt 0:00:00]} Qc3 {[%emt 0:02:25]} 23. Ra2 {[%emt 0:00:00]} exf4 {[%emt 0:10:39]} 24. Bxf4 {[%emt 0:00:00]} Ne5 {[%emt 0:00:40]} 25. Bxe5 {[%emt 0:00:00]} dxe5 {[%emt 0:01:14]} 26. Rd3 {[%emt 0:00:00]} Qc7 {[%emt 0:04:04]} 27. c4 {[%emt 0:00:00]} f5 {[%emt 0:05:01]} 28. Qe3 {[%emt 0:00:00]} Qxa5 {[%emt 0:07:20]} 29. bxa5 {[%emt 0:00:00]} Bc5 {[%emt 0:00:01]} 30. Re2 {[%emt 0:00:00]} Bxe3+ {[%emt 0:00:36]} 31. Rdxe3 {[%emt 0:00:00]} f4 {[%emt 0:01:03]} 32. Rc3 {[%emt 0:00:00]} Rfd8 {[%emt 0:02:39]} 33. Bg4 {[%emt 0:00:00]} Rc5 {[%emt 0:00:46]} 34. Be6+ {[%emt 0:00:00]} Kf8 {[%emt 0:00:12]} 35. Bd5 {[%emt 0:00:00]} Bxd5 {[%emt 0:06:01]} 36. Rd2 {[%emt 0:00:00]} Ke7 {[%emt 0:01:13]} 37. Rxd5 {[%emt 0:00:00]} Rdxd5 {[%emt 0:00:34]} 38. exd5 {[%emt 0:00:00]} Kd6 {[%emt 0:00:30]} 39. Kf2 {[%emt 0:00:00]} e4 {[%emt 0:01:27]} 40. Rc1 {[%emt 0:00:00]} Rc8 {[%emt 0:02:03]} 41. h4 {[%emt 0:00:00]} Rb8 {[%emt 0:02:25]} 42. c5+ {[%emt 0:00:00]} Kxd5 {[%emt 0:00:19]} 43. c6 {[%emt 0:00:00]} Rc8 {[%emt 0:00:34]} 44. c7 {[%emt 0:00:00]} Kd6 {[%emt 0:03:05]} 45. Rc4 {[%emt 0:00:00]} e3+ {[%emt 0:02:06]} 46. Kf3 {[%emt 0:00:00]} Rxc7 {[%emt 0:00:48]} 47. Rxf4 {[%emt 0:00:00]} Re7 {[%emt 0:03:44]} 48. Ke2 {[%emt 0:00:00]} Kc5 {[%emt 0:00:21]} 49. Rb4 {[%emt 0:00:00]} Re6 {[%emt 0:00:54]} 50. h5 {[%emt 0:00:00]} g6 {[%emt 0:04:31]} 51. hxg6 {[%emt 0:00:00]} Rxg6 {[%emt 0:01:05]} 52. g4 {[%emt 0:00:00]} Re6 {[%emt 0:00:45]} 53. g5 {[%emt 0:05:08]} Re5 {[%emt 0:01:48]} 54. Rb7 {[%emt 0:00:41]} Rxg5 {[%emt 0:00:30]} 55. Rxh7 {[%emt 0:00:06]} Kc4 {[%emt 0:01:36]} 56. Rh3 {[%emt 0:02:19]} Re5 {[%emt 0:00:03]} 57. Rxe3 {[%emt 0:00:19]} Rxe3+ {[%emt 0:00:49]} 58. Kxe3 {[%emt 0:00:04]} Kc3 {[%emt 0:00:23]} 59. Ke2 {[%emt 0:00:10]} Kc2 {[%emt 0:01:13]} 60. Ke3 {[%emt 0:00:13]} Kb2 {[%emt 0:01:03]} 61. Kd2 {[%emt 0:00:20]} Kxa3 {[%emt 0:01:23]} 62. Kc3 {[%emt 0:00:11]} Ka2 {[%emt 0:00:05]} 63. Kc2 {[%emt 0:00:03]} a3 {[%emt 0:00:52]} 64. Kc1 {[%emt 0:00:09]} Kb3 {[%emt 0:00:20]} 65. Kb1 {[%emt 0:00:06]} Ka4 {[%emt 0:00:27]} 66. Ka2 {[%emt 0:00:07]} Kb4 {[%emt 0:00:15]} 67. Kb1 {[%emt 0:00:06]} Kxa5 {[%emt 0:00:09]} 68. Ka2 {[%emt 0:00:11]} Kb4 {[%emt 0:00:04]} 69. Ka1 {[%emt 0:00:11]} Kb3 {[%emt 0:00:13]} 70. Kb1 {[%emt 0:00:04]} a2+ {[%emt 0:00:23]} 71. Ka1 {[%emt 0:00:09]} a5 {[%emt 0:02:59]} 1/2-1/2